Workbook

Sheet Special Rates 2018-19
E4: 2018/19 Calculation of Special School Funding Rates
B8: DfE | E8: =IFERROR(VLOOKUP(DFENUM,newdatacalc!$A$33:$CB$55,2,0),"") -> 
B11: Section 1 - Commissioned Place numbers
B13: Academic Year | C13: Pre-16 | D13: Post-16 | E13: Weekday Residential | F13: Weekend Residential | H13: High Needs Place numbers as agreed annually with the Local Authority's SEN team. Place numbers 2017-18 agreed November 2016 Place numbers 2018-19 agreed November 2017
B15: 2017/18 | C15: =IFERROR(VLOOKUP(DFENUM,newdatacalc!$A$33:$CL$55,81,0),0) -> 0 | D15: =IFERROR(VLOOKUP(DFENUM,newdatacalc!$A$33:$CL$55,82,0),0) -> 0 | E15: =IFERROR(VLOOKUP(DFENUM,newdatacalc!$A$33:$CL$55,83,0),0) -> 0 | F15: =IFERROR(VLOOKUP(DFENUM,newdatacalc!$A$33:$CL$55,84,0),0) -> 0
B17: 2018/19 | C17: =IFERROR(VLOOKUP(DFENUM,newdatacalc!$A$33:$CL$55,79,0),0) -> 0 | D17: =IFERROR(VLOOKUP(DFENUM,newdatacalc!$A$33:$CL$55,80,0),0) -> 0 | E17: =IFERROR(VLOOKUP(DFENUM,newdatacalc!$A$33:$CL$55,77,0),0) -> 0 | F17: =IFERROR(VLOOKUP(DFENUM,newdatacalc!$A$33:$CL$55,78,0),0) -> 0
B19: Movement | C19: =C17-C15 -> 0 | D19: =D17-D15 -> 0 | E19: =E17-E15 -> 0 | F19: =F17-F15 -> 0
J23: Day Pupil | Q23: Weekday | X23: Weekend
B24: Section 2 - Calculation of funding rate for April 2018 to March 2019
J25: MLD & SLCN | K25: BESD | L25: SLD | M25: PD & PMLD | N25: ASD | Q25: MLD & SLCN | R25: BESD | S25: SLD | T25: PD & PMLD | U25: ASD | X25: MLD & SLCN | Y25: BESD | Z25: SLD | AA25: PD & PMLD | AB25: ASD
A27: (A) | B27: April 2018 to August 2018 (Formula only excluding MFG)- based on Academic Year 2017 to 2018. Data taken from 2017-18 Funding Rates Calculation. | J27: =IFERROR(VLOOKUP('Special Rates 2018-19'!DFENUM,newdatacalc!$A$33:$BC$55,41,0),0) -> 0 | K27: =IFERROR(VLOOKUP('Special Rates 2018-19'!DFENUM,newdatacalc!$A$33:$BC$55,42,0),0) -> 0 | L27: =IFERROR(VLOOKUP('Special Rates 2018-19'!DFENUM,newdatacalc!$A$33:$BC$55,43,0),0) -> 0 | M27: =IFERROR(VLOOKUP('Special Rates 2018-19'!DFENUM,newdatacalc!$A$33:$BC$55,44,0),0) -> 0 | N27: =IFERROR(VLOOKUP('Special Rates 2018-19'!DFENUM,newdatacalc!$A$33:$BC$55,45,0),0) -> 0 | Q27: =VLOOKUP('Special Rates 2018-19'!DFENUM,newdatacalc!$A$33:$BC$55,46,0) ->  | R27: =VLOOKUP('Special Rates 2018-19'!DFENUM,newdatacalc!$A$33:$BC$55,47,0) ->  | S27: =VLOOKUP('Special Rates 2018-19'!DFENUM,newdatacalc!$A$33:$BC$55,48,0) ->  | T27: =VLOOKUP('Special Rates 2018-19'!DFENUM,newdatacalc!$A$33:$BC$55,49,0) ->  | U27: =VLOOKUP('Special Rates 2018-19'!DFENUM,newdatacalc!$A$33:$BC$55,50,0) ->  | X27: =VLOOKUP('Special Rates 2018-19'!DFENUM,newdatacalc!$A$33:$BC$55,51,0) ->  | Y27: =VLOOKUP('Special Rates 2018-19'!DFENUM,newdatacalc!$A$33:$BC$55,52,0) ->  | Z27: =VLOOKUP('Special Rates 2018-19'!DFENUM,newdatacalc!$A$33:$BC$55,53,0) ->  | AA27: =VLOOKUP('Special Rates 2018-19'!DFENUM,newdatacalc!$A$33:$BC$55,54,0) ->  | AB27: =VLOOKUP('Special Rates 2018-19'!DFENUM,newdatacalc!$A$33:$BC$55,55,0) -> 
A29: (B) | B29: September 2018 to March 2019 (Formula only excluding MFG)- based on Academic Year 2018 to 2019. See section 3 for calculation. | J29: =J91 -> 9128.007813 | K29: =K91 -> 11039.86039 | L29: =L91 -> 12995.84806 | M29: 19441.57977 | N29: 14949.8296 | Q29: =Q91 ->  | R29: =R91 ->  | X29: =X91 ->  | Y29: =Y91 -> 
A31: (C) | B31: April 2018 to March 2019 - based on Academic Year 2017 to 2018 (April 2018 to August 2018) 5/12's + Academic Year 2018 to 2019 (September 2018 to March 2019) 7/12's | I31: = (A) X 5/12 + (B) X 7/12 | J31: =(J27*5/12)+(J29*7/12) -> 5324.671224 | K31: =(K27*5/12)+(K29*7/12) -> 6439.91856 | L31: =(L27*5/12)+(L29*7/12) -> 7580.911371 | M31: =(M27*5/12)+(M29*7/12) -> 11340.92153 | N31: =(N27*5/12)+(N29*7/12) -> 8720.733933 | Q31: =(Q27*5/12)+(Q29*7/12) ->  | R31: =(R27*5/12)+(R29*7/12) ->  | S31: =(S27*5/12)+(S29*7/12) ->  | T31: =(T27*5/12)+(T29*7/12) ->  | U31: =(U27*5/12)+(U29*7/12) ->  | X31: =(X27*5/12)+(X29*7/12) ->  | Y31: =(Y27*5/12)+(Y29*7/12) ->  | Z31: =(Z27*5/12)+(Z29*7/12) ->  | AA31: =(AA27*5/12)+(AA29*7/12) ->  | AB31: =(AB27*5/12)+(AB29*7/12) -> 
A33: (D-input) | B33: Final funding rate for financial Year 2017 to 2018 | J33: =IFERROR(VLOOKUP('Special Rates 2018-19'!DFENUM,newdatacalc!$A$33:$BV$55,58,0),0) -> 0 | K33: =IFERROR(VLOOKUP('Special Rates 2018-19'!DFENUM,newdatacalc!$A$33:$BV$55,59,0),0) -> 0 | L33: =IFERROR(VLOOKUP('Special Rates 2018-19'!DFENUM,newdatacalc!$A$33:$BV$55,60,0),0) -> 0 | M33: =IFERROR(VLOOKUP('Special Rates 2018-19'!DFENUM,newdatacalc!$A$33:$BV$55,61,0),0) -> 0 | N33: =IFERROR(VLOOKUP('Special Rates 2018-19'!DFENUM,newdatacalc!$A$33:$BV$55,62,0),0) -> 0 | Q33: =VLOOKUP('Special Rates 2018-19'!DFENUM,newdatacalc!$A$33:$BV$55,63,0) ->  | R33: =VLOOKUP('Special Rates 2018-19'!DFENUM,newdatacalc!$A$33:$BV$55,64,0) ->  | S33: =VLOOKUP('Special Rates 2018-19'!DFENUM,newdatacalc!$A$33:$BV$55,65,0) ->  | T33: =VLOOKUP('Special Rates 2018-19'!DFENUM,newdatacalc!$A$33:$BV$55,66,0) ->  | U33: =VLOOKUP('Special Rates 2018-19'!DFENUM,newdatacalc!$A$33:$BV$55,67,0) ->  | X33: =VLOOKUP('Special Rates 2018-19'!DFENUM,newdatacalc!$A$33:$BV$55,68,0) ->  | Y33: =VLOOKUP('Special Rates 2018-19'!DFENUM,newdatacalc!$A$33:$BV$55,69,0) ->  | Z33: =VLOOKUP('Special Rates 2018-19'!DFENUM,newdatacalc!$A$33:$BV$55,70,0) ->  | AA33: =VLOOKUP('Special Rates 2018-19'!DFENUM,newdatacalc!$A$33:$BV$55,71,0) ->  | AB33: =VLOOKUP('Special Rates 2018-19'!DFENUM,newdatacalc!$A$33:$BV$55,72,0) -> 
A34: (D) | B34: MFG rate (D-input) X 98.5% | J34: =J33*0.985 -> 0 | K34: =K33*0.985 -> 0 | L34: 0 | M34: 0 | N34: =N33*0.985 -> 0 | Q34: =Q33*0.985 ->  | R34: =R33*0.985 ->  | U34: =U33*0.985 ->  | X34: =X33*0.985 ->  | Y34: =Y33*0.985 -> 
J37: MLD & SLCN | K37: BESD | L37: SLD | M37: PD & PMLD | N37: ASD | Q37: MLD & SLCN | R37: BESD | S37: SLD | T37: PD & PMLD | U37: ASD | X37: MLD & SLCN | Y37: BESD | Z37: SLD | AA37: PD & PMLD | AB37: ASD
A38: (E) | B38: Final Rate (Greater of Formula (C) or MFG (D)) | G38: Formula (C) | J38: =J31 -> 5324.671224 | K38: =K31 -> 6439.91856 | L38: =L31 -> 7580.911371 | M38: =M31 -> 11340.92153 | N38: =N31 -> 8720.733933 | P38: Formula | Q38: =Q31 ->  | R38: =R31 ->  | S38: =S31 ->  | T38: =T31 ->  | U38: =U31 ->  | W38: Formula | X38: =X31 ->  | Y38: =Y31 ->  | Z38: =Z31 ->  | AA38: =AA31 ->  | AB38: =AB31 -> 
G39: MFG funding rate (D) | J39: =J34 -> 0 | K39: =K34 -> 0 | L39: 0 | M39: 0 | N39: 0 | P39: MFG | Q39: =Q34 ->  | R39: =R34 ->  | W39: MFG | X39: =X34 ->  | Y39: =Y34 -> 
G40: Amount of MFG if (D) is greater than ( C) | J40: =IF(J38>J39,0,J39-J38) -> 0 | K40: =IF(K38>K39,0,K39-K38) -> 0 | L40: 0 | M40: 0 | N40: 0 | P40: Amount of MFG if (D) is greater than ( C) | Q40: =IF(Q38>Q39,0,Q39-Q38) ->  | W40: Amount of MFG if (D) is greater than ( C) | X40: =IF(X38>X39,0,X39-X38) ->  | Y40: =IF(Y38>Y39,0,Y39-Y38) -> 
G41: Final Rate formula plus MFG | J41: =SUM(J38,J40) -> 5324.671224 | K41: =SUM(K38,K40) -> 6439.91856 | L41: 7580.911371 | M41: 11340.92153 | N41: 8720.733933 | P41: Final Rate | Q41: =SUM(Q38,Q40) ->  | R41: =SUM(R38,R40) ->  | W41: Final Rate | X41: =SUM(X38,X40) ->  | Y41: =SUM(Y38,Y40) ->  | Z41: =SUM(Z38,Z40) ->  | AA41: =SUM(AA38,AA40) ->  | AB41: =SUM(AB38,AB40) -> 
A42: (F) | B42: Place Plus Breakdown
G43: Element 1 & 2 | J43: 10000 | K43: 10000 | L43: 10000 | M43: 10000 | N43: 10000 | P43: Element 1 & 2 | Q43: =IF($F$81=0,0,10000) ->  | R43: =IF($F$81=0,0,10000) ->  | S43: =IF($F$81=0,0,10000) ->  | T43: =IF($F$81=0,0,10000) ->  | U43: =IF($F$81=0,0,10000) ->  | W43: Element 1 & 2 | X43: =IF($F$17=0,0,10000) -> 0 | Y43: =IF($F$17=0,0,10000) -> 0 | Z43: 0 | AA43: 0 | AB43: 0
G44: Element 3 | J44: =J41-J43 -> -4675.328776 | K44: =K41-K43 -> -3560.08144 | L44: -2419.088629 | M44: 1340.921532 | N44: -1279.266067 | P44: Element 3 | Q44: =Q41-Q43 ->  | R44: =R41-R43 ->  | W44: Element 3 | X44: =X41-X43 -> 
G45: Total rate | J45: =SUM(J43:J44) -> 5324.671224 | K45: =SUM(K43:K44) -> 6439.91856 | L45: 7580.911371 | M45: 11340.92153 | N45: 8720.733933 | P45: Total rate | Q45: =SUM(Q43:Q44) ->  | R45: =SUM(R43:R44) ->  | W45: Total rate | X45: =SUM(X43:X44) -> 
B46: Section 3 - Pupil Led Elements
J47: Need Type | Q47: Need Type | X47: Need Type
J48: MLD & SLCN | K48: BESD | L48: SLD | M48: PD & PMLD | N48: ASD | Q48: MLD & SLCN | R48: BESD | S48: SLD | T48: PD & PMLD | U48: ASD | X48: MLD & SLCN | Y48: BESD | Z48: SLD | AA48: PD & PMLD | AB48: ASD
B49: Day Rate | J49: 8876.17179 | K49: 10788.02437 | L49: 12744.01204 | M49: 19189.74375 | N49: 14697.99358 | Q49: =IF($F$81=0,0,8876.17179021256) ->  | R49: =IF($F$81=0,0,10788.0243655825) ->  | S49: =IF($F$81=0,0,12744.0120409384) ->  | T49: =IF($F$81=0,0,19189.7437454553) ->  | U49: =IF($F$81=0,0,14697.9935770824) ->  | X49: =IF($F$17=0,0,8876.17179021256) -> 0 | Y49: =IF($F$17=0,0,10788.0243655825) -> 0 | Z49: =IF($F$17=0,0,12744.0120409384) -> 0 | AA49: =IF($F$17=0,0,19189.7437454553) -> 0 | AB49: =IF($F$17=0,0,14697.9935770824) -> 0
B50: Adjusted Rate due to School type (see note 1) | J50: 0 | K50: =IFERROR(((VLOOKUP(DFENUM,newdatacalc!A5:G27,7,0)*10788.0243655825)+(VLOOKUP(DFENUM,newdatacalc!A5:G27,6,0)*14697.9935770824))-K49,0) -> 0 | L50: 0 | M50: 0 | N50: =IFERROR(((VLOOKUP(DFENUM,newdatacalc!A5:E27,5,0)*14697.9935770824)+(VLOOKUP(DFENUM,newdatacalc!A5:E27,4,0)*21796.7242799931))-N49,0) -> 0 | Q50: 0 | R50: =IF($F$81=0,0,K50) ->  | S50: 0 | T50: 0 | U50: =IF($F$81=0,0,N50) ->  | X50: 0 | Y50: =IF($F$17=0,0,K50) -> 0 | Z50: 0 | AA50: 0 | AB50: =IF($F$17=0,0,N50) -> 0
B51: Residential Weekday rate | J51: 0 | K51: 0 | L51: 0 | M51: 0 | N51: 0 | Q51: =VLOOKUP(DFENUM,newdatacalc!$A$33:$CL$55,86,0) ->  | R51: =VLOOKUP(DFENUM,newdatacalc!$A$33:$CL$55,86,0) ->  | S51: =VLOOKUP(DFENUM,newdatacalc!$A$33:$CL$55,86,0) ->  | T51: =VLOOKUP(DFENUM,newdatacalc!$A$33:$CL$55,86,0) ->  | U51: =VLOOKUP(DFENUM,newdatacalc!$A$33:$CL$55,86,0) ->  | X51: =IF($F$17=0,0,VLOOKUP(DFENUM,newdatacalc!$A$33:$CL$55,86,0)) -> 0 | Y51: =IF($F$17=0,0,VLOOKUP(DFENUM,newdatacalc!$A$33:$CL$55,86,0)) -> 0 | Z51: =IF($F$17=0,0,VLOOKUP(DFENUM,newdatacalc!$A$33:$CL$55,86,0)) -> 0 | AA51: =IF($F$17=0,0,VLOOKUP(DFENUM,newdatacalc!$A$33:$CL$55,86,0)) -> 0 | AB51: =IF($F$17=0,0,VLOOKUP(DFENUM,newdatacalc!$A$33:$CL$55,86,0)) -> 0
B52: Residential Weekend rate | J52: 0 | K52: 0 | L52: 0 | M52: 0 | N52: 0 | Q52: 0 | R52: 0 | S52: 0 | T52: 0 | U52: 0 | X52: =VLOOKUP(DFENUM,newdatacalc!$A$33:$CL$55,87,0) ->  | Y52: =VLOOKUP(DFENUM,newdatacalc!$A$33:$CL$55,87,0) ->  | Z52: =VLOOKUP(DFENUM,newdatacalc!$A$33:$CL$55,87,0) ->  | AA52: =VLOOKUP(DFENUM,newdatacalc!$A$33:$CL$55,87,0) ->  | AB52: =VLOOKUP(DFENUM,newdatacalc!$A$33:$CL$55,87,0) -> 
B53: Subsidy on day places (catering) | J53: 106 | K53: 106 | L53: 106 | M53: 106 | N53: 106 | Q53: =IF($F$81=0,0,106) ->  | R53: =Q53 ->  | S53: =R53 ->  | X53: =IF(F$17=0,0,106) -> 0 | Y53: =X53 -> 0 | Z53: 0 | AA53: 0 | AB53: 0
B54: Lunch Grant | J54: 11 | K54: 11 | L54: 11 | M54: 11 | N54: 11 | Q54: =IF($F$81=0,0,11) ->  | R54: =Q54 ->  | X54: =IF(F$17=0,0,11) -> 0 | Y54: 0 | Z54: 0 | AA54: 0 | AB54: 0
B55: Specialist Schools Funding | J55: 91.28090972 | K55: 91.28090972 | L55: 91.28090972 | M55: 91.28090972 | N55: 91.28090972 | Q55: =IF($F$81=0,0,91.2809097248297) ->  | X55: =IF(F$17=0,0,91.2809097248297) -> 0 | Y55: 0 | Z55: 0 | AA55: 0 | AB55: 0
B56: Further Delegation | J56: 42.06251087 | K56: 42.06251087 | L56: 42.06251087 | M56: 42.06251087 | N56: 42.06251087 | Q56: =IF($F$81=0,0,42.0625108718685) ->  | X56: =IF(F$17=0,0,42.0625108718685) -> 0 | Y56: 0 | Z56: 0 | AA56: 0 | AB56: 0
B57: Induction for Newly Qualified Teachers | J57: 1.492602448 | K57: 1.492602448 | L57: 1.492602448 | M57: 1.492602448 | N57: 1.492602448 | Q57: =IF($F$81=0,0,1.4926024481107) ->  | X57: =IF(F$17=0,0,1.4926024481107) -> 0 | Y57: 0 | Z57: 0 | AA57: 0 | AB57: 0
B58: Residential Weekday Places Catering | J58: 0 | K58: 0 | L58: 0 | M58: 0 | N58: 0 | Q58: =VLOOKUP(DFENUM,newdatacalc!$A$33:$CL$55,88,0) ->  | X58: 0 | Y58: 0 | Z58: 0 | AA58: 0 | AB58: 0
B59: Residential Weekend Places Catering | J59: 0 | K59: 0 | L59: 0 | M59: 0 | N59: 0 | Q59: 0 | R59: 0 | S59: 0 | T59: 0 | U59: 0 | X59: =VLOOKUP(DFENUM,newdatacalc!$A$33:$CL$55,89,0) ->  | Y59: =X59 ->  | Z59: =Y59 -> 
B60: London Fringe Day Pupil | J60: =IFERROR(IF(LONDAY>0,0.0174114727366503*J49,0)*(IF(DFENUM=7002,(50/164),1)),0) -> 0 | K60: =IFERROR(IF(LONDAY>0,0.0186025655345146*(K49+K50),0)*(IF(DFENUM=7002,(50/164),1)),0) -> 0 | L60: =IFERROR(IF(LONDAY>0,0.0180246285124395*L49,0)*(IF(DFENUM=7002,(50/164),1)),0) -> 0 | M60: =IFERROR(IF(LONDAY>0,0.0184931692203593*M49,0)*(IF(DFENUM=7002,(50/164),1)),0) -> 0 | N60: =IFERROR(IF(LONDAY>0,0.0186025655345146*(N49+N50),0)*(IF(DFENUM=7002,(50/164),1)),0) -> 0 | Q60: =IF(VLOOKUP('Special Rates 2018-19'!DFENUM,newdatacalc!$A$33:$BC$55,21,0)>0,0.0174114727366503*Q49*(IF(DFENUM=7002,(164/164),1)),0) ->  | R60: =IF(VLOOKUP('Special Rates 2018-19'!DFENUM,newdatacalc!$A$33:$BC$55,21,0)>0,0.0186025655345146*R49*(IF(DFENUM=7002,(164/164),1)),0) ->  | S60: =IF(VLOOKUP('Special Rates 2018-19'!DFENUM,newdatacalc!$A$33:$BC$55,21,0)>0,0.0180246285124395*S49*(IF(DFENUM=7002,(164/164),1)),0) ->  | T60: =IF(VLOOKUP('Special Rates 2018-19'!DFENUM,newdatacalc!$A$33:$BC$55,21,0)>0,0.0184931692203593*T49*(IF(DFENUM=7002,(164/164),1)),0) ->  | U60: =IF(VLOOKUP('Special Rates 2018-19'!DFENUM,newdatacalc!$A$33:$BC$55,21,0)>0,0.0186025655345146*(U49+U50)*(IF(DFENUM=7002,(164/164),1)),0) ->  | X60: =IF(LONRES>0,0.0174114727366503*X49,0) ->  | Y60: =IF(LONRES>0,0.0186025655345146*Y49,0) ->  | Z60: =IF(LONRES>0,0.0180246285124395*Z49,0) ->  | AA60: =IF(LONRES>0,0.0184931692203593*AA49,0) ->  | AB60: =IF(LONRES>0,0.0186025655345146*AB49,0) -> 
B61: London Fringe Weekday Residential Pupil | J61: =IFERROR(IF(LONRES>0,0.0198836550802172*J51,0),0) -> 0 | K61: =IFERROR(IF(LONRES>0,0.0198836550802172*K51,0),0) -> 0 | L61: =IFERROR(IF(LONRES>0,0.0198836550802172*L51,0),0) -> 0 | M61: =IFERROR(IF(LONRES>0,0.0198836550802172*M51,0),0) -> 0 | N61: =IFERROR(IF(LONRES>0,0.0198836550802172*N51,0),0) -> 0 | Q61: =IF(LONRES>0,0.0198836550802172*Q51*(IF(DFENUM=7002,(164/164),1)),0) ->  | R61: =IF(LONRES>0,0.0198836550802172*R51*(IF(DFENUM=7002,(164/164),1)),0) ->  | S61: =IF(LONRES>0,0.0198836550802172*S51*(IF(DFENUM=7002,(164/164),1)),0) ->  | T61: =IF(LONRES>0,0.0198836550802172*T51*(IF(DFENUM=7002,(164/164),1)),0) ->  | U61: =IF(LONRES>0,0.0198836550802172*U51*(IF(DFENUM=7002,(164/164),1)),0) ->  | X61: =IF(LONRES>0,0.0198836550802172*X51,0) ->  | Y61: =IF(LONRES>0,0.0198836550802172*Y51,0) ->  | Z61: =IF(LONRES>0,0.0198836550802172*Z51,0) ->  | AA61: =IF(LONRES>0,0.0198836550802172*AA51,0) ->  | AB61: =IF(LONRES>0,0.0198836550802172*AB51,0) -> 
B62: London Fringe Weekend Residential Pupil | J62: =IFERROR(IF(LONRES>0,0.0198224953157972*J52,0),0) -> 0 | K62: =IFERROR(IF(LONRES>0,0.0198224953157972*K52,0),0) -> 0 | L62: =IFERROR(IF(LONRES>0,0.0198224953157972*L52,0),0) -> 0 | M62: =IFERROR(IF(LONRES>0,0.0198224953157972*M52,0),0) -> 0 | N62: =IFERROR(IF(LONRES>0,0.0198224953157972*N52,0),0) -> 0 | Q62: 0 | R62: 0 | S62: 0 | T62: 0 | U62: 0 | X62: =IF(LONRES>0,0.0198224953157972*X52,0) ->  | Y62: =IF(LONRES>0,0.0198224953157972*Y52,0) ->  | Z62: =IF(LONRES>0,0.0198224953157972*Z52,0) ->  | AA62: =IF(LONRES>0,0.0198224953157972*AA52,0) ->  | AB62: =IF(LONRES>0,0.0198224953157972*AB52,0) -> 
B64: Rate for Pupil Led Elements | J64: =SUM(J49:J63) -> 9128.007813 | K64: =SUM(K49:K63) -> 11039.86039 | L64: =SUM(L49:L63) -> 12995.84806 | M64: 19441.57977 | N64: 14949.8296 | Q64: =SUM(Q49:Q63) ->  | X64: =SUM(X49:X63) ->  | Y64: =SUM(Y49:Y63) -> 
B66: Section 4 - School Led Elements
J67: Need Type | Q67: Need Type | X67: Need Type
F68: Units | G68: Rate | H68: Total | I68: Places | J68: MLD & SLCN | K68: BESD | L68: SLD | M68: PD & PMLD | N68: ASD | Q68: MLD & SLCN | R68: BESD | S68: SLD | T68: PD & PMLD | U68: ASD | X68: MLD & SLCN | Y68: BESD | Z68: SLD | AA68: PD & PMLD | AB68: ASD
B69: Lump Sum Day | F69: =VLOOKUP('Special Rates 2018-19'!DFENUM,newdatacalc!$A$6:$AM$27,16,0) ->  | G69: 346331 | H69: =F69*G69 ->  | I69: =$C$17+$D$17 -> 0 | J69: =IF(I69=0,0,H69/I69) -> 0 | K69: =$J69 -> 0 | L69: =$J69 -> 0 | M69: 0 | N69: 0 | Q69: =IF(SUM($E$17:$F$17)>0,$J69,0) -> 0 | R69: =IF(SUM($E$17:$F$17)>0,K$69,0) -> 0 | S69: =IF(SUM($E$17:$F$17)>0,L$69,0) -> 0 | T69: =IF(SUM($E$17:$F$17)>0,M$69,0) -> 0 | U69: =IF(SUM($E$17:$F$17)>0,N$69,0) -> 0 | X69: =IF(SUM($F$17)>0,$J69,0) -> 0 | Y69: =IF(SUM($F$17)>0,$K69,0) -> 0 | Z69: =IF(SUM($F$17)>0,$L69,0) -> 0 | AA69: =IF(SUM($F$17)>0,$M69,0) -> 0 | AB69: =IF(SUM($F$17)>0,$N69,0) -> 0
B70: Lump Sum Catering Day | F70: =VLOOKUP('Special Rates 2018-19'!DFENUM,newdatacalc!$A$6:$AM$27,17,0) ->  | G70: 2000 | H70: =F70*G70 ->  | I70: =$C$17+$D$17 -> 0 | J70: =IF(I70=0,0,H70/I70) -> 0 | K70: =$J70 -> 0 | L70: 0 | M70: 0 | N70: 0 | Q70: =IF(SUM($E$17:$F$17)>0,$J70,0) -> 0 | R70: =IF(SUM($E$17:$F$17)>0,K$70,0) -> 0 | S70: =IF(SUM($E$17:$F$17)>0,L$70,0) -> 0 | T70: =IF(SUM($E$17:$F$17)>0,M$70,0) -> 0 | U70: =IF(SUM($E$17:$F$17)>0,N$70,0) -> 0 | X70: =IF(SUM($F$17)>0,$J70,0) -> 0 | Y70: =IF(SUM($F$17)>0,$J70,0) -> 0 | Z70: 0 | AA70: 0 | AB70: 0
B71: Specialist Schools Funding- Lump Sum | F71: =VLOOKUP('Special Rates 2018-19'!DFENUM,newdatacalc!$A$6:$AM$27,15,0) ->  | G71: 11817.70833 | I71: 0 | J71: =IF(I71=0,0,H71/I71) -> 0 | K71: 0 | L71: 0 | M71: 0 | N71: 0 | Q71: 0 | R71: =IF(SUM($E$17:$F$17)>0,K$71,0) -> 0 | S71: =IF(SUM($E$17:$F$17)>0,L$71,0) -> 0 | T71: =IF(SUM($E$17:$F$17)>0,M$71,0) -> 0 | U71: =IF(SUM($E$17:$F$17)>0,N$71,0) -> 0 | X71: 0 | Y71: 0 | Z71: 0 | AA71: 0 | AB71: 0
B72: Free Mid-day Meals | F72: =VLOOKUP('Special Rates 2018-19'!DFENUM,newdatacalc!A$33:AM$55,34,0)*SUM(C17:D17) ->  | G72: 415 | H72: =F72*G72 ->  | I72: 0 | J72: =IF(I72=0,0,H72/I72) -> 0 | K72: 0 | L72: 0 | M72: 0 | N72: 0 | Q72: 0 | R72: =IF(SUM($E$17:$F$17)>0,K$72,0) -> 0 | S72: =IF(SUM($E$17:$F$17)>0,L$72,0) -> 0 | T72: =IF(SUM($E$17:$F$17)>0,M$72,0) -> 0 | U72: =IF(SUM($E$17:$F$17)>0,N$72,0) -> 0 | X72: 0 | Y72: 0 | Z72: 0 | AA72: 0 | AB72: 0
B73: Gross Day Floor Area (m2) | F73: =VLOOKUP('Special Rates 2018-19'!DFENUM,newdatacalc!A$33:BX$55,23,0) ->  | G73: 29.99999778 | I73: 0 | J73: 0 | K73: 0 | L73: 0 | M73: 0 | N73: 0 | Q73: 0 | R73: =IF(SUM($E$17:$F$17)>0,K$73,0) -> 0 | S73: =IF(SUM($E$17:$F$17)>0,L$73,0) -> 0 | T73: =IF(SUM($E$17:$F$17)>0,M$73,0) -> 0 | U73: =IF(SUM($E$17:$F$17)>0,N$73,0) -> 0 | X73: 0 | Y73: 0 | Z73: 0 | AA73: 0 | AB73: 0
B74: Grounds Site Area (hectares) | F74: =VLOOKUP('Special Rates 2018-19'!DFENUM,newdatacalc!A$33:BV$55,26,0) ->  | G74: 1052 | I74: 0 | J74: 0 | K74: 0 | L74: 0 | M74: 0 | N74: 0 | Q74: 0 | R74: =IF(SUM($E$17:$F$17)>0,K$74,0) -> 0 | S74: =IF(SUM($E$17:$F$17)>0,L$74,0) -> 0 | T74: =IF(SUM($E$17:$F$17)>0,M$74,0) -> 0 | U74: =IF(SUM($E$17:$F$17)>0,N$74,0) -> 0 | X74: 0 | Y74: 0 | Z74: 0 | AA74: 0 | AB74: 0
B75: Rentals | F75: =VLOOKUP('Special Rates 2018-19'!DFENUM,newdatacalc!A$33:AM$55,28,0) ->  | G75: =VLOOKUP('Special Rates 2018-19'!DFENUM,newdatacalc!$A$33:$AM$55,27,0) ->  | H75: =F75*G75 ->  | I75: 0 | J75: =IF(I75=0,0,H75/I75) -> 0 | K75: 0 | L75: 0 | M75: 0 | N75: 0 | Q75: 0 | R75: =IF(SUM($E$17:$F$17)>0,K$75,0) -> 0 | S75: =IF(SUM($E$17:$F$17)>0,L$75,0) -> 0 | T75: =IF(SUM($E$17:$F$17)>0,M$75,0) -> 0 | U75: =IF(SUM($E$17:$F$17)>0,N$75,0) -> 0 | X75: 0 | Y75: 0 | Z75: 0 | AA75: 0 | AB75: 0
B76: Hydrotherapy Pool | F76: =VLOOKUP('Special Rates 2018-19'!DFENUM,newdatacalc!A$33:AM$55,33,0) ->  | G76: 5000 | I76: 0 | J76: 0 | K76: 0 | L76: 0 | M76: 0 | N76: 0 | Q76: 0 | R76: =IF(SUM($E$17:$F$17)>0,K$76,0) -> 0 | S76: =IF(SUM($E$17:$F$17)>0,L$76,0) -> 0 | T76: =IF(SUM($E$17:$F$17)>0,M$76,0) -> 0 | U76: =IF(SUM($E$17:$F$17)>0,N$76,0) -> 0 | X76: 0 | Y76: 0 | Z76: 0 | AA76: 0 | AB76: 0
B77: Split site- Band 1 | F77: =VLOOKUP('Special Rates 2018-19'!DFENUM,newdatacalc!A$33:AM$55,38,0) ->  | G77: 4378 | I77: 0 | J77: 0 | K77: 0 | L77: 0 | M77: 0 | N77: 0 | Q77: 0 | R77: =IF(SUM($E$17:$F$17)>0,K$77,0) -> 0 | S77: =IF(SUM($E$17:$F$17)>0,L$77,0) -> 0 | T77: 0 | U77: 0 | X77: 0 | Y77: 0 | Z77: 0 | AA77: 0 | AB77: 0
B78: Split site - Band 2 | F78: =VLOOKUP('Special Rates 2018-19'!DFENUM,newdatacalc!A$33:AM$55,39,0) ->  | G78: =VLOOKUP('Special Rates 2018-19'!DFENUM,newdatacalc!A$33:BB$55,40,0) ->  | I78: 0 | J78: =IF(I78=0,0,H78/I78) -> 0 | K78: 0 | L78: 0 | M78: 0 | N78: 0 | Q78: 0 | R78: =IF(SUM($E$17:$F$17)>0,K$78,0) -> 0 | S78: =IF(SUM($E$17:$F$17)>0,L$78,0) -> 0 | T78: 0 | U78: 0 | X78: 0 | Y78: 0 | Z78: 0 | AA78: 0 | AB78: 0
B79: Residential Floor Area Weekday (m2) | F79: =VLOOKUP('Special Rates 2018-19'!DFENUM,newdatacalc!A$33:AM$55,24,0) ->  | G79: 49.99954249 | H79: =F79*G79 ->  | I79: =E17 -> 0 | J79: 0 | K79: 0 | L79: 0 | M79: 0 | N79: 0 | Q79: =IF(SUM($E$17:$F$17)>0,H79/I79,0) -> 0 | R79: =Q79 -> 0 | S79: =R79 -> 0 | T79: 0 | U79: 0 | X79: 0 | Y79: 0 | Z79: 0 | AA79: 0 | AB79: 0
B80: Residential Floor Area Weekend (m2) | F80: =VLOOKUP('Special Rates 2018-19'!DFENUM,newdatacalc!A$33:AM$55,25,0) ->  | G80: 64.99990816 | I80: =E17 -> 0 | J80: 0 | K80: 0 | L80: 0 | M80: 0 | N80: 0 | Q80: =IF(SUM($E$17:$F$17)>0,H80/I80,0) -> 0 | R80: =Q80 -> 0 | S80: 0 | T80: 0 | U80: 0 | X80: =IF(SUM($F$17)>0,$Q80,0) -> 0 | Y80: 0 | Z80: 0 | AA80: 0 | AB80: 0
B81: Lump Sum Residential | F81: =VLOOKUP('Special Rates 2018-19'!DFENUM,newdatacalc!A$33:CP$55,31,0) ->  | G81: =VLOOKUP('Special Rates 2018-19'!DFENUM,newdatacalc!$A$33:$AM$55,32,0) ->  | I81: =E17 -> 0 | J81: 0 | K81: 0 | L81: 0 | M81: 0 | N81: 0 | Q81: =IF(SUM($E$17:$F$17)>0,H81/I81,0) -> 0 | R81: 0 | S81: 0 | T81: 0 | U81: 0 | X81: =IF(SUM($F$17)>0,$Q81,0) -> 0 | Y81: 0 | Z81: 0 | AA81: 0 | AB81: 0
B82: London Fringe Day Pupils | F82: =VLOOKUP('Special Rates 2018-19'!DFENUM,newdatacalc!A$33:BX$55,36,0) ->  | G82: =VLOOKUP('Special Rates 2018-19'!DFENUM,newdatacalc!A$5:AM$55,18,0) ->  | H82: =F82*G82 ->  | I82: =$C$17+$D$17 -> 0 | J82: =IF(I82=0,0,$H$82/$I$82)*(IF(DFENUM=7002,(50/164),1)) -> 0 | K82: =J82 -> 0 | L82: 0 | M82: 0 | N82: =M82 -> 0 | Q82: =IF(SUM($E$17:$F$17)>0,(H82/I82)*(IF(DFENUM=7002,(164/164),1)),0) -> 0 | R82: 0 | S82: 0 | T82: 0 | U82: 0 | X82: 0 | Y82: 0 | Z82: 0 | AA82: 0 | AB82: 0
B83: London Fringe Residential Pupils | F83: =VLOOKUP('Special Rates 2018-19'!DFENUM,newdatacalc!A$33:BX$55,37,0) ->  | G83: =IF(DFENUM=7002,2414.25,2414.25) -> 2414.25 | H83: =F83*G83 ->  | I83: =E17 -> 0 | J83: 0 | K83: 0 | L83: 0 | M83: 0 | N83: 0 | Q83: =IF(SUM($E$17:$F$17)>0,(H83/I83)*(IF(DFENUM=7002,(164/164),1)),0) -> 0 | R83: 0 | S83: 0 | T83: 0 | U83: 0 | X83: 0 | Y83: 0 | Z83: 0 | AA83: 0 | AB83: 0
B85: Rate for School Led Elements | J85: =SUM(J69:J84) -> 0 | K85: 0 | L85: 0 | M85: 0 | N85: 0 | Q85: =SUM(Q69:Q84) -> 0 | R85: =SUM(R69:R84) -> 0 | S85: 0 | T85: 0 | U85: 0 | X85: =SUM(X69:X84) -> 0 | Y85: =SUM(Y69:Y84) -> 0 | Z85: =SUM(Z69:Z84) -> 0 | AA85: =SUM(AA69:AA84) -> 0 | AB85: =SUM(AB69:AB84) -> 0
B88: Total Formula Rate
J89: Need Type | Q89: Need Type | X89: Need Type
J90: MLD & SLCN | K90: BESD | L90: SLD | M90: PD & PMLD | N90: ASD | Q90: MLD & SLCN | R90: BESD | S90: SLD | T90: PD & PMLD | U90: ASD | X90: MLD & SLCN | Y90: BESD | Z90: SLD | AA90: PD & PMLD | AB90: ASD
J91: =J64+J85 -> 9128.007813 | K91: =K64+K85 -> 11039.86039 | L91: =L64+L85 -> 12995.84806 | M91: =M64+M85 -> 19441.57977 | N91: =N64+N85 -> 14949.8296 | Q91: =Q64+Q85 ->  | R91: =R64+R85 ->  | S91: =S64+S85 ->  | T91: =T64+T85 ->  | U91: =U64+U85 ->  | X91: =X64+X85 ->  | Y91: =Y64+Y85 ->  | Z91: =Z64+Z85 ->  | AA91: =AA64+AA85 ->  | AB91: =AB64+AB85 -> 
B93: Note 1
B94: ASD | G94: BESD
B95: - All ASD pupils in Stone Bay are funded at ASD2 (£21,797) | G95: - 75% of Pupils at BESD Schools funded at BESD2 (£13,721)
B96: - 10% of all ASD places in C & I and PSCN Special Schools are funded at ASD2 (£15,408) | G96: - 25% of all Primary aged Pupils at B&L Schools funded at at BESD2 (BESD1 - £10,078 + percentage profile of individual School)

Sheet Nursery Lump Sums
B2: 2018/19 Nursery Provision Lump Sum Calculation
C5: Rates
C7: Leadership Lump Sum per provision | D7: 50000 | I7: Day Rate Breakdown
C8: Day Rate per FTE (see breakdown) | D8: 8681.57
I9: Support Staff | J9: 7073.65
C10: Calculation | I10: Other Staffing | J10: 1003.07
I11: Resources | J11: 354.08
D12: Units | E12: Rate | F12: Total | I12: Training/Sundry | J12: 250.77
C13: Leadership Lump Sum | D13: =IFERROR(VLOOKUP(DFENUM,newdatacalc!$A$33:$CL$55,9,0),0) -> 0 | E13: 50000 | F13: =IFERROR(E13*D13,"TBC") -> 0 | I13: Total FTE Funding | J13: 8681.57
C14: Day Rate | D14: =IFERROR(VLOOKUP(DFENUM,newdatacalc!$A$33:$CL$55,10,0),0) -> 0 | E14: 8681.57 | F14: =IFERROR(E14*D14,"TBC") -> 0
E16: Total Funding at this provision: | F16: =IFERROR(F14+F13,"TBC") -> 0
C19: This funding will be provided in twelve equal instalments (except where a Nursery provision is commissioned to start in-year)
J97: =J56+J85 -> 0
J113: =J97+J105 -> 0

Sheet newdatacalc (hidden)
A1: 1 | B1: 2 | C1: 3 | D1: 4 | E1: 5 | F1: 6 | G1: 7 | H1: 8 | I1: 9 | J1: 10 | K1: 11 | L1: 12 | M1: 13 | N1: 14 | O1: 15 | P1: 16 | Q1: 17 | R1: 18 | S1: 19 | T1: 20 | U1: 21 | V1: 22 | W1: 23 | X1: 24 | Y1: 25 | Z1: 26 | AA1: 27 | AB1: 28 | AC1: 29 | AD1: 30 | AE1: 31 | AF1: 32 | AG1: 33 | AH1: 34 | AI1: 35 | AJ1: 36 | AK1: 40 | AL1: 37 | AM1: 38 | AN1: 39 | AO1: 41 | AP1: 42 | AQ1: 43 | AR1: 44 | AS1: 45 | AT1: 46 | AU1: 47 | AV1: 48 | AW1: 49 | AX1: 50 | AY1: 51 | AZ1: 52 | BA1: 53 | BB1: 54 | BC1: 55 | BD1: 56 | BE1: 57 | BF1: 58 | BG1: 59 | BH1: 60 | BI1: 61 | BJ1: 62 | BK1: 63 | BL1: 64 | BM1: 65 | BN1: 66 | BO1: 67 | BP1: 68 | BQ1: 69 | BR1: 70 | BS1: 71 | BT1: 72 | BU1: 73 | BV1: 74 | BW1: 89 | BX1: 90 | BY1: 91 | BZ1: 92 | CA1: 93 | CB1: 94 | CC1: 95 | CD1: 96 | CE1: 97 | CF1: 98 | CG1: 99 | CH1: 100 | CI1: 101 | CJ1: 102 | CK1: 103
A4: Calc | D4: 21796.72428 | E4: 14697.99358 | F4: 14697.99358 | G4: 10788.02437
A5: Dfe | B5: School | C5: Type | D5: ASD High rate | E5: ASD Low Rate | F5: BESD High rate | G5: BESD Low Rate | I5: Dfe | J5: Primary Pupils | K5: Secondary Pupils | L5: Total Pupils | M5: % secondary | N5: 25% BESD2 | O5: Specialist School | P5: Lump sum day | Q5: Lump sum day catering | R5: London Fridge Dat rate
A6: 7032 | B6: Bower Grove School | C6: B&L | D6: 0 | E6: 1 | F6: =VLOOKUP(A6,$I$6:$N$10,6,0) -> 0.1037735849 | G6: =1-F6 -> 0.8962264151 | I6: 7032 | J6: 44 | K6: 62 | L6: 106 | M6: =J6/L6 -> 0.4150943396 | N6: =M6*0.25 -> 0.1037735849 | O6: 1 | P6: 1 | Q6: 1 | R6: 3854.25
A7: 7033 | B7: St Anthony's School | C7: B&L | D7: 0 | E7: 1 | F7: =VLOOKUP(A7,$I$6:$N$10,6,0) -> 0.08620689655 | G7: =1-F7 -> 0.9137931034 | I7: 7033 | J7: 20 | K7: 38 | L7: 58 | M7: =J7/L7 -> 0.3448275862 | N7: =M7*0.25 -> 0.08620689655 | O7: 1 | P7: 1 | Q7: 1 | R7: 3854.25
A8: 7044 | B8: Rowhill School | C8: B&L | D8: 0 | E8: 1 | F8: =VLOOKUP(A8,$I$6:$N$10,6,0) -> 0.1032608696 | G8: 0.8967391304 | I8: 7044 | J8: 19 | K8: 27 | L8: 46 | M8: 0.4130434783 | N8: =M8*0.25 -> 0.1032608696 | O8: 1 | P8: 1 | Q8: 1 | R8: 3854.25
A9: 7045 | B9: Elms School | C9: B&L | D9: 0 | E9: 1 | F9: =VLOOKUP(A9,$I$6:$N$10,6,0) -> 0.08333333333 | G9: 0.9166666667 | I9: 7045 | J9: 23 | K9: 46 | L9: 69 | M9: 0.3333333333 | N9: 0.08333333333 | O9: 1 | P9: 1 | Q9: 1 | R9: 3854.25
A10: 7062 | B10: The Orchard School | C10: B&L | D10: 0 | E10: 1 | F10: =VLOOKUP(A10,$I$6:$N$10,6,0) -> 0.07661290323 | G10: 0.9233870968 | I10: 7062 | J10: 19 | K10: 43 | L10: 62 | M10: 0.3064516129 | N10: 0.07661290323 | O10: 1 | P10: 1 | Q10: 1 | R10: 3854.25
A11: 7041 | B11: Goldwyn Community Special School | C11: BESD | D11: 0 | E11: 1 | F11: 0.75 | G11: 0.25 | O11: 1 | P11: 1 | Q11: 1 | R11: 3854.25
A12: 7067 | B12: Portal House School | C12: BESD | D12: 0 | E12: 1 | F12: 0.75 | G12: 0.25 | O12: 1 | P12: 1 | Q12: 1 | R12: 3854.25
A13: 7002 | B13: Broomhill Bank School | C13: C&I | D13: 0.1 | E13: 0.9 | F13: 0 | G13: 1 | O13: 1 | P13: 1 | Q13: 1 | R13: 3854.25
A14: 7052 | B14: Grange Park School | C14: C&I | D14: 0.1 | E14: 0.9 | F14: 0 | G14: 1 | O14: 1 | P14: 1 | Q14: 1 | R14: 3854.25
A15: 7058 | B15: Stone Bay School | C15: C&I | D15: 1 | E15: 0 | F15: 0 | G15: 1 | O15: 1 | P15: 1 | Q15: 1 | R15: 3854.25
A16: 7073 | B16: Laleham Gap School | C16: C&I | D16: 0.1 | E16: 0.9 | F16: 0 | G16: 1 | O16: 1 | P16: 1 | Q16: 1 | R16: 3854.25
A17: 7021 | B17: Valence School | C17: PD | D17: 0 | E17: 1 | F17: 0 | G17: 1 | O17: 1 | P17: 1 | Q17: 1 | R17: 3854.25
A18: 7039 | B18: The Ifield School | C18: PSCN | D18: 0.1 | E18: 0.9 | F18: 0 | G18: 1 | O18: 1 | P18: 1 | Q18: 1 | R18: 3854.25
A19: 7040 | B19: Foreland Fields School | C19: PSCN | D19: 0.1 | E19: 0.9 | F19: 0 | G19: 1 | O19: 1 | P19: 1 | Q19: 1 | R19: 3854.25
A20: 7043 | B20: The Beacon Folkestone | C20: PSCN | D20: 0.1 | E20: 0.9 | F20: 0 | G20: 1 | O20: 1 | P20: 1 | Q20: 1 | R20: 3854.25
A21: 7051 | B21: Nexus School | C21: PSCN | D21: 0.1 | E21: 0.9 | F21: 0 | G21: 1 | O21: 1 | P21: 1 | Q21: 1 | R21: 3854.25
A22: 7056 | B22: Five Acre Wood School | C22: PSCN | D22: 0.1 | E22: 0.9 | F22: 0 | G22: 1 | O22: 1 | P22: 1 | Q22: 1 | R22: 3854.25
A23: 7063 | B23: St Nicholas' School | C23: PSCN | D23: 0.1 | E23: 0.9 | F23: 0 | G23: 1 | O23: 1 | P23: 1 | Q23: 1 | R23: 3854.25
A24: 7066 | B24: Milestone School | C24: PSCN | D24: 0.1 | E24: 0.9 | F24: 0 | G24: 1 | O24: 1 | P24: 1 | Q24: 1 | R24: 3854.25
A25: 7069 | B25: The Wyvern School | C25: PSCN | D25: 0.1 | E25: 0.9 | F25: 0 | G25: 1 | O25: 1 | P25: 1 | Q25: 1 | R25: 3854.25
A26: 7070 | B26: Oakley School | C26: PSCN | D26: 0.1 | E26: 0.9 | F26: 0 | G26: 1 | O26: 1 | P26: 1 | Q26: 1 | R26: 3854.25
A27: 7072 | B27: Meadowfield School | C27: PSCN | D27: 0.1 | E27: 0.9 | F27: 0 | G27: 1 | O27: 1 | P27: 1 | Q27: 1 | R27: 3854.25
A29: 1 | B29: 2 | C29: 3 | D29: 4 | E29: 5 | F29: 6 | G29: 7 | H29: 8 | I29: 9 | J29: 10 | K29: 11 | L29: 12 | M29: 13 | N29: 14 | O29: 15 | P29: 16 | Q29: 17 | R29: 18 | S29: 19 | T29: 20 | U29: 21 | V29: 22 | W29: 23 | X29: 24 | Y29: 25 | Z29: 26 | AA29: 27 | AB29: 28 | AC29: 29 | AD29: 30 | AE29: 31 | AF29: 32 | AG29: 33 | AH29: 34 | AI29: 35 | AJ29: 36 | AK29: 37 | AL29: 38 | AM29: 39 | AN29: 40 | AO29: 41 | AP29: 42 | AQ29: 43 | AR29: 44 | AS29: 45 | AT29: 46 | AU29: 47 | AV29: 48 | AW29: 49 | AX29: 50 | AY29: 51 | AZ29: 52 | BA29: 53 | BB29: 54 | BC29: 55 | BD29: 56 | BE29: 57 | BF29: 58 | BG29: 59 | BH29: 60 | BI29: 61 | BJ29: 62 | BK29: 63 | BL29: 64 | BM29: 65 | BN29: 66 | BO29: 67 | BP29: 68 | BQ29: 69 | BR29: 70 | BS29: 71 | BT29: 72 | BU29: 73 | BV29: 74 | BW29: 75 | BX29: 76 | BY29: 77 | BZ29: 78 | CA29: 79 | CB29: 80 | CC29: 81 | CD29: 82 | CE29: 83 | CF29: 84 | CG29: 85 | CH29: 86 | CI29: 87 | CJ29: 88 | CK29: 89
D31: 21796.72428 | E31: 10788.02437 | BX31: =SUM(BX34:BX55) -> 0 | BY31: 100 | BZ31: 16 | CA31: 3552 | CB31: 578 | CC31: 3327 | CD31: 549 | CE31: 92 | CF31: 16
A32: Data | D32: 14697.99358 | E32: 14697.99358 | N32: =SUM(N34:N55) -> 0 | O32: =SUM(O34:O55) -> 0 | AO32: DAY April to August 2018 (A) | AP32: DAY April to August 2018 (A) | AQ32: DAY April to August 2018 (A) | AR32: DAY April to August 2018 (A) | AS32: DAY April to August 2018 (A) | AT32: WeekD April to August 2018 (A) | AU32: WeekD April to August 2018 (A) | AV32: WeekD April to August 2018 (A) | AW32: WeekD April to August 2018 (A) | AX32: WeekD April to August 2018 (A) | AY32: WeekEnd April to August 2018 (A) | AZ32: WeekEnd April to August 2018 (A) | BA32: WeekEnd April to August 2018 (A) | BB32: WeekEnd April to August 2018 (A) | BC32: WeekEnd April to August 2018 (A) | BF32: DAY September to March 2018 (D input) | BG32: DAY September to March 2018 (D input) | BH32: DAY September to March 2018 (D input) | BI32: DAY September to March 2018 (D input) | BJ32: DAY September to March 2018 (D input) | BK32: WeekD September to March 2018 (D input) | BL32: WeekD September to March 2018 (D input) | BM32: WeekD September to March 2018 (D input) | BN32: WeekD September to March 2018 (D input) | BO32: WeekD September to March 2018 (D input) | BP32: WeekEnd September to March 2018 (D input) | BQ32: WeekEnd September to March 2018 (D input) | BR32: WeekEnd September to March 2018 (D input) | BS32: WeekEnd September to March 2018 (D input) | BT32: WeekEnd September to March 2018 (D input) | BW32: Place data (18/19) | CC32: Place data (17/18)
A33: Dfe | B33: School | C33: Type | D33: ASDAdjusted Rate due to School type (see note 1) | E33: BESDAdjusted Rate due to School type (see note 1) | F33: Day provision | G33: Resi -Weekday | H33: Resi -Weekend | I33: Nursery | J33: Nursery FTE | U33: London Fringe Residential Pupils (DAY adjustment for Broomhill) | V33: Lunch Grant | W33: Gross Day Floor Area (m2) | X33: Residential Floor Area Weekday (m2) | Y33: Residential Floor Area Weekend (m2) | Z33: Grounds Site Area (hectares) | AA33: Rentals | AB33: Rentals | AC33: Lump sum standard | AD33: lump sum catering day | AE33: lump sum residential | AF33: lump sum residential rate | AG33: Hydrotherapy Pool | AH33: % FSM | AJ33: London Fringe Day Pupils | AK33: London Fringe Residential Pupils | AL33: Split site- Band 1 | AM33: Split site - Band 2 | AN33: split site 2 rate | AO33: MLD & SLCN | AP33: BESD | AQ33: SLD | AR33: PD & PMLD | AS33: ASD | AT33: MLD & SLCN | AU33: BESD | AV33: SLD | AW33: PD & PMLD | AX33: ASD | AY33: MLD & SLCN | AZ33: BESD | BA33: SLD | BB33: PD & PMLD | BC33: ASD | BF33: MLD & SLCN | BG33: BESD | BH33: SLD | BI33: PD & PMLD | BJ33: ASD | BK33: MLD & SLCN | BL33: BESD | BM33: SLD | BN33: PD & PMLD | BO33: ASD | BP33: MLD & SLCN | BQ33: BESD | BR33: SLD | BS33: PD & PMLD | BT33: ASD | BX33: Day | BY33: Res Weekday | BZ33: Res Weekend | CA33: Pre-16 | CB33: Post-16 | CC33: Pre-16 | CD33: Post-16 | CE33: Weekday Residential | CF33: Weekend Residential | CH33: Residential weekday | CI33: Residential Weekend | CJ33: Residential Weekday Places- Catering | CK33: Residential Weekend Places Catering
A34: 7032 | B34: Bower Grove School | C34: B&L | D34: 709.8730703 | E34: 405.7515219 | F34: 1 | I34: 0 | J34: 0 | U34: =AK34 -> 0 | V34: 0 | W34: 4093 | X34: 0 | Y34: 0 | Z34: 2.1496 | AA34: 0 | AB34: 0 | AC34: 1 | AD34: 1 | AE34: 0 | AG34: 0 | AH34: 0.387254902 | AJ34: 0 | AK34: 0 | AL34: 1 | AM34: 0 | AO34: 11643.59857 | AP34: 13974.37642 | AQ34: 15511.43883 | AR34: 21957.17053 | AS34: 17465.42036 | BF34: 11647.10125 | BG34: 13958.68435 | BH34: 15514.9415 | BI34: 21960.6732 | BJ34: 17468.92303 | BY34: 0 | BZ34: 0 | CA34: 212 | CB34: 0 | CC34: 208 | CD34: 0 | CE34: 0 | CF34: 0
A35: 7033 | B35: St Anthony's School | C35: B&L | D35: 709.8730703 | E35: 337.0663113 | F35: 1 | I35: 0 | J35: 0 | U35: =AK35 -> 0 | V35: 0 | W35: 3614 | X35: 0 | Y35: 0 | Z35: 1.54 | AA35: 0 | AB35: 0 | AC35: 1 | AD35: 1 | AE35: 0 | AG35: 0 | AH35: 0.5050505051 | AJ35: 0 | AK35: 0 | AL35: 0 | AM35: 0 | AO35: 14260.37283 | AP35: 16515.20516 | AQ35: 18128.21308 | AR35: 24573.94478 | AS35: 20082.19461 | BF35: 14267.38491 | BG35: 16520.97456 | BH35: 18135.22517 | BI35: 24580.95687 | BJ35: 20089.2067 | BY35: 0 | BZ35: 0 | CA35: 98 | CB35: 0 | CC35: 96 | CD35: 0 | CE35: 0 | CF35: 0
A36: 7044 | B36: Rowhill School | C36: B&L | D36: 709.8730703 | E36: 403.7468208 | F36: 1 | I36: 0 | J36: 0 | U36: 1 | V36: 0 | W36: 4165 | X36: 0 | Y36: 0 | Z36: 1.8948 | AA36: 0 | AB36: 0 | AC36: 1 | AD36: 1 | AE36: 0 | AG36: 0 | AH36: 0.5327102804 | AJ36: 1 | AK36: 1 | AL36: 0 | AM36: 0 | AO36: 13949.21264 | AP36: 16327.59953 | AQ36: 17892.21175 | AR36: 24463.11655 | AS36: 19889.90759 | BF36: 14013.84572 | BG36: 16365.23345 | BH36: 17956.84483 | BI36: 24527.74963 | BJ36: 19954.54067 | BY36: 0 | BZ36: 0 | CA36: 110 | CB36: 0 | CC36: 110 | CD36: 0 | CE36: 0 | CF36: 0
A37: 7045 | B37: Elms School | C37: B&L | D37: 709.8730703 | E37: 325.8307676 | F37: 1 | I37: 0 | J37: 0 | U37: 0 | V37: 0 | W37: 2771 | X37: 0 | Y37: 0 | Z37: 2.13 | AA37: 0 | AB37: 0 | AC37: 1 | AD37: 1 | AE37: 0 | AG37: 0 | AH37: 0.6 | AJ37: 0 | AK37: 0 | AL37: 0 | AM37: 0 | AO37: 13242.79009 | AP37: 15498.08591 | AQ37: 17110.63034 | AR37: 23556.36205 | AS37: 19064.61188 | BF37: 13446.05671 | BG37: 15666.46646 | BH37: 17297.21045 | BI37: 23742.94215 | BJ37: 19251.19198 | BY37: 0 | BZ37: 0 | CA37: 115 | CB37: 0 | CC37: 115 | CD37: 0 | CE37: 0 | CF37: 0
A38: 7062 | B38: The Orchard School | C38: B&L | D38: 709.8730703 | E38: 299.5540928 | F38: 1 | I38: 0 | J38: 0 | U38: 0 | V38: 0 | W38: 2505 | X38: 0 | Y38: 0 | Z38: 1.81 | AA38: 0 | AB38: 0 | AC38: 1 | AD38: 1 | AE38: 0 | AG38: 0 | AH38: 0.4430379747 | AJ38: 0 | AK38: 0 | AL38: 0 | AM38: 0 | AO38: 14797.62056 | AP38: 16953.84621 | AQ38: 18665.46081 | AR38: 25111.19252 | AS38: 20619.44235 | BF38: 14813.93419 | BG38: 16995.61536 | BH38: 18681.77444 | BI38: 25127.50614 | BJ38: 20635.75597 | BY38: 0 | BZ38: 0 | CA38: 83 | CB38: 0 | CC38: 80 | CD38: 0 | CE38: 0 | CF38: 0
A39: 7041 | B39: Goldwyn Community Special School | C39: BESD | E39: 2932.476909 | F39: 1 | I39: 0 | J39: 0 | U39: 0 | V39: 0 | W39: 5362.38009 | X39: 0 | Y39: 0 | Z39: 7.3492 | AA39: 0 | AB39: 0 | AC39: 1 | AD39: 1 | AE39: 0 | AG39: 0 | AH39: 0.3410852713 | AJ39: 0 | AK39: 0 | AL39: 1 | AM39: 1 | AN39: 38427 | AO39: 13656.80834 | AP39: 18501.13782 | AQ39: 17524.64859 | AR39: 23970.38029 | AS39: 19478.63012 | BF39: 14538.9299 | BG39: 19046.06867 | BH39: 18114.26814 | BI39: 24072.56793 | BJ39: 19920.49399 | BY39: 0 | BZ39: 0 | CA39: 150 | CB39: 0 | CC39: 130 | CD39: 0 | CE39: 0 | CF39: 0
A40: 7067 | B40: Portal House School | C40: BESD | E40: 2932.476909 | F40: 1 | I40: 0 | J40: 0 | U40: 0 | V40: 0 | W40: 3091 | X40: 0 | Y40: 0 | Z40: 0.81 | AA40: 0 | AB40: 0 | AC40: 1 | AD40: 1 | AE40: 0 | AG40: 0 | AH40: 0.3333333333 | AJ40: 0 | AK40: 0 | AL40: 0 | AM40: 0 | AO40: 16861.60121 | AP40: 21705.9307 | AQ40: 20729.44147 | AR40: 27175.17317 | AS40: 22683.423 | BF40: 16843.19397 | BG40: 21685.11835 | BH40: 20708.62912 | BI40: 27154.36082 | BJ40: 22662.61066 | BY40: 0 | BZ40: 0 | CA40: 60 | CB40: 0 | CC40: 60 | CD40: 0 | CE40: 0 | CF40: 0
A41: 7002 | B41: Broomhill Bank School | C41: C&I | F41: 1 | G41: 1 | I41: 0 | J41: 0 | U41: 1 | V41: 0 | W41: 10814.893 | X41: 632.1069985 | Y41: 0 | Z41: 10.685 | AA41: 0 | AB41: 0 | AC41: 1 | AD41: 1 | AE41: 1 | AF41: 163425 | AG41: 0 | AH41: 0.196969697 | AJ41: 1 | AK41: 1 | AL41: 0 | AM41: 1 | AN41: 38427 | AO41: 12763.13546 | AP41: 14689.05441 | AQ41: 16653.88999 | AR41: 23137.78423 | AS41: 19335.09819 | AT41: 54950.17751 | AU41: 56908.1678 | AV41: 58893.17662 | AW41: 65464.08142 | AX41: 61613.951 | BF41: 14975.73367 | BG41: 16168.47423 | BH41: 18638.37067 | BI41: 24746.43351 | BJ41: 21176.2279 | BK41: 54950.17751 | BL41: 56908.1678 | BM41: 58893.17662 | BN41: 65464.08142 | BO41: 61613.951 | BY41: 24 | BZ41: 0 | CA41: 155 | CB41: 62 | CC41: 172 | CD41: 37 | CE41: 12 | CF41: 0 | CH41: 24705.56013 | CI41: 0 | CJ41: 1360 | CK41: 0
A42: 7052 | B42: Grange Park School | C42: C&I | F42: 1 | I42: 0 | J42: 0 | U42: 0 | V42: 0 | W42: 1958.53 | X42: 0 | Y42: 0 | Z42: 1.1245 | AA42: 0 | AB42: 0 | AC42: 1 | AD42: 1 | AE42: 0 | AG42: 0 | AH42: 0.2636363636 | AJ42: 0 | AK42: 0 | AL42: 0 | AM42: 0 | AO42: 13057.65246 | AP42: 14969.50504 | AQ42: 16925.49271 | AR42: 23371.22442 | AS42: 19589.34732 | BF42: 13222.13706 | BG42: 15122.2038 | BH42: 17078.19148 | BI42: 23523.92318 | BJ42: 19742.04608 | BY42: 0 | BZ42: 0 | CA42: 64 | CB42: 46 | CC42: 62 | CD42: 48 | CE42: 0 | CF42: 0
A43: 7058 | B43: Stone Bay School | C43: C&I | D43: 7098.730703 | F43: 1 | G43: 1 | I43: 0 | J43: 0 | U43: 0 | V43: 0 | W43: 2396.216342 | X43: 1481.783658 | Y43: 0 | Z43: 0.96 | AA43: 0 | AB43: 0 | AC43: 1 | AD43: 1 | AE43: 1 | AF43: 163425 | AG43: 1 | AH43: 0.2407407407 | AJ43: 0 | AK43: 0 | AL43: 0 | AM43: 0 | AO43: 16524.52893 | AP43: 18436.38151 | AQ43: 20392.36918 | AR43: 26838.10089 | AS43: 29445.08142 | AT43: 60441.16822 | AU43: 62353.02079 | AV43: 64309.00847 | AW43: 70754.74017 | AX43: 73361.72071 | BF43: 16749.61041 | BG43: 18632.78519 | BH43: 20576.61275 | BI43: 27022.34446 | BJ43: 29629.32499 | BK43: 59800.83781 | BL43: 61712.69039 | BM43: 63668.67807 | BN43: 70114.40977 | BO43: 72721.3903 | BY43: 22 | BZ43: 0 | CA43: 45 | CB43: 15 | CC43: 34 | CD43: 26 | CE43: 21 | CF43: 0 | CH43: 30188.02968 | CJ43: 1360
A44: 7073 | B44: Laleham Gap School | C44: C&I | F44: 1 | G44: 1 | I44: 0 | J44: 0 | U44: 0 | V44: 0 | W44: =3477+669.34 -> 4146.34 | X44: =1004-571 -> 433 | Y44: 0 | Z44: 2.5697 | AA44: 0 | AB44: 0 | AC44: 1 | AD44: 1 | AE44: 1 | AF44: 163425 | AG44: 0 | AH44: 0.2408376963 | AJ44: 0 | AK44: 0 | AL44: 0 | AM44: 0 | AO44: 11683.21477 | AP44: 13595.06735 | AQ44: 15551.05502 | AR44: 21996.78673 | AS44: 18214.90963 | AT44: 75360.40721 | AU44: 77272.25979 | AV44: 79228.24746 | AW44: 85673.97917 | AX44: 81892.10207 | BF44: 12100.57567 | BG44: 13983.75046 | BH44: 15910.39832 | BI44: 22259.44405 | BJ44: 18534.2951 | BK44: 64315.55292 | BL44: 66227.40549 | BM44: 68183.39317 | BN44: 74629.12487 | BO44: 70847.24778 | BY44: 5 | BZ44: 0 | CA44: 196 | CB44: 0 | CC44: 190 | CD44: 0 | CE44: 5 | CF44: 0 | CH44: 19592.28431 | CI44: 0 | CJ44: 1360 | CK44: 0
A45: 7021 | B45: Valence School | C45: PD | F45: 1 | G45: 1 | H45: 1 | I45: 0 | J45: 0 | U45: 1 | V45: 0 | W45: 8799 | X45: 0 | Y45: 1924 | Z45: 18.322 | AA45: 0 | AB45: 0 | AC45: 1 | AD45: 1 | AE45: 1 | AF45: 163425 | AG45: 1 | AH45: 0.202020202 | AJ45: 1 | AK45: 1 | AL45: 0 | AM45: 0 | AO45: 15687.04661 | AP45: 17645.03689 | AQ45: 19630.04572 | AR45: 26200.95052 | AS45: 21627.74156 | AT45: 61131.77073 | AU45: 63089.76101 | AV45: 65074.76984 | AW45: 71645.67464 | AX45: 67072.46568 | AY45: 86180.89398 | AZ45: 88138.88427 | BA45: 90123.89309 | BB45: 96694.79789 | BC45: 92121.58894 | BF45: 16568.97142 | BG45: 17637.71874 | BH45: 20198.75503 | BI45: 26247.79175 | BJ45: 21620.42341 | BK45: 61124.45258 | BL45: 63082.44286 | BM45: 65067.45169 | BN45: 71638.35649 | BO45: 67065.14753 | BP45: 86173.57583 | BQ45: 88131.56611 | BR45: 90116.57494 | BS45: 96687.47974 | BT45: 92114.27078 | BY45: 49 | BZ45: 16 | CA45: 70 | CB45: 30 | CC45: 79 | CD45: 24 | CE45: 54 | CF45: 16 | CH45: 37943.25368 | CI45: 23885.65007 | CJ45: 1360 | CK45: 2050
A46: 7039 | B46: The Ifield School | C46: PSCN | F46: 1 | I46: 1 | J46: 6 | U46: 0 | V46: 0 | W46: 4274.139996 | X46: 0 | Y46: 0 | Z46: 6.22 | AA46: 31367 | AB46: 1 | AC46: 1 | AD46: 1 | AE46: 0 | AG46: 1 | AH46: 0.298245614 | AJ46: 0 | AK46: 0 | AL46: 1 | AM46: 0 | AO46: 11647.84687 | AP46: 13559.69944 | AQ46: 15515.68712 | AR46: 21961.41882 | AS46: 18179.54172 | BF46: 11643.06852 | BG46: 13554.9211 | BH46: 15510.90877 | BI46: 21956.64048 | BJ46: 18174.76338 | BY46: 0 | BZ46: 0 | CA46: 187 | CB46: 43 | CC46: 181 | CD46: 42 | CE46: 0 | CF46: 0
A47: 7040 | B47: Foreland Fields School | C47: PSCN | F47: 1 | I47: =(1*(5/12))+((2*(7/12))) -> 1.583333333 | J47: =(6*(5/12))+((10*(7/12))) -> 8.333333333 | K47: Checked to Letter | U47: 0 | V47: 0 | W47: 4331 | X47: 0 | Y47: 0 | Z47: 4.3045 | AA47: 0 | AB47: 0 | AC47: 1 | AD47: 1 | AE47: 0 | AG47: 1 | AH47: 0.3301886792 | AJ47: 0 | AK47: 0 | AL47: 1 | AM47: 0 | AO47: 11892.02802 | AP47: 13803.8806 | AQ47: 15759.86827 | AR47: 22205.59998 | AS47: 18423.72288 | BF47: 12017.40037 | BG47: 13929.25294 | BH47: 15885.24062 | BI47: 22330.97232 | BJ47: 18549.09522 | BY47: 0 | BZ47: 0 | CA47: 167 | CB47: 33 | CC47: 168 | CD47: 24 | CE47: 0 | CF47: 0
A48: 7043 | B48: The Beacon School | C48: PSCN | F48: 1 | I48: 2 | J48: 10 | K48: Checked to Letter | U48: 0 | V48: 0 | W48: 6634 | X48: 0 | Y48: 0 | Z48: 0.9251 | AA48: 0 | AB48: 0 | AC48: 1 | AD48: 1 | AE48: 0 | AG48: 1 | AH48: 0.3162393162 | AJ48: 0 | AK48: 0 | AL48: 0 | AM48: 0 | AO48: 10854.37614 | AP48: 12766.22872 | AQ48: 14722.21639 | AR48: 21167.9481 | AS48: 17386.071 | BF48: 12132.60305 | BG48: 13946.86518 | BH48: 15853.81294 | BI48: 22202.85867 | BJ48: 18477.70973 | BY48: 0 | BZ48: 0 | CA48: 291 | CB48: 63 | CC48: 282 | CD48: 65 | CE48: 0 | CF48: 0
A49: 7051 | B49: Nexus School | C49: PSCN | F49: 1 | I49: 1 | J49: 8 | K49: Not listed on letter | U49: 0 | V49: 0 | W49: =5690+130 -> 5820 | X49: 0 | Y49: 0 | Z49: 2.36 | AA49: 0 | AB49: 0 | AC49: 1 | AD49: 1 | AE49: 0 | AG49: 1 | AH49: 0.203539823 | AJ49: 0 | AK49: 0 | AL49: 0 | AM49: 0 | AO49: 12705.42134 | AP49: 14617.27391 | AQ49: 16573.26159 | AR49: 23018.99329 | AS49: 19237.11619 | BF49: 13165.06681 | BG49: 15048.2416 | BH49: 16974.88946 | BI49: 23323.93519 | BJ49: 19598.78625 | BY49: 0 | BZ49: 0 | CA49: 158 | CB49: 14 | CC49: 117 | CD49: 13 | CE49: 0 | CF49: 0
A50: 7056 | B50: Five Acre Wood School | C50: PSCN | F50: 1 | I50: =(1*(5/12))+((2*(7/12))) -> 1.583333333 | J50: =(8*(5/12))+((10*(7/12))) -> 9.166666667 | K50: Checked to Letter | U50: 0 | V50: 0 | W50: 7768.4 | X50: 0 | Y50: 0 | Z50: 2.6382 | AA50: 9259 | AB50: 1 | AC50: 1 | AD50: 1 | AE50: 0 | AG50: 1 | AH50: 0.2432432432 | AJ50: 0 | AK50: 0 | AL50: 1 | AM50: 1 | AN50: 38427 | AO50: 11242.47703 | AP50: 13154.3296 | AQ50: 15110.31728 | AR50: 21556.04898 | AS50: 17774.17189 | BF50: 11599.77724 | BG50: 13244.65968 | BH50: 15175.11547 | BI50: 21575.51477 | BJ50: 17793.63767 | BY50: 0 | BZ50: 0 | CA50: 324 | CB50: 51 | CC50: 277 | CD50: 48 | CE50: 0 | CF50: 0
A51: 7063 | B51: St Nicholas' School | C51: PSCN | F51: 1 | I51: 1 | J51: 6 | K51: Not listed on letter | U51: 0 | V51: 0 | W51: 3971.77001 | X51: 0 | Y51: 0 | Z51: 0.9305 | AA51: =21000+32747+24000 -> 77747 | AB51: 1 | AC51: 1 | AD51: 1 | AE51: 0 | AG51: 1 | AH51: 0.3012048193 | AJ51: 0 | AK51: 0 | AL51: 1 | AM51: 1 | AN51: 38427 | AO51: 11845.57676 | AP51: 13757.42934 | AQ51: 15713.41702 | AR51: 22159.14872 | AS51: 18377.27162 | BF51: 11634.2681 | BG51: 13546.12068 | BH51: 15502.10835 | BI51: 21947.84006 | BJ51: 18165.96296 | BY51: 0 | BZ51: 0 | CA51: 205 | CB51: 45 | CC51: 190 | CD51: 45 | CE51: 0 | CF51: 0
A52: 7066 | B52: Milestone School | C52: PSCN | F52: 1 | I52: 2 | J52: 12 | K52: Not listed on letter | U52: 1 | V52: 0 | W52: =6993+261 -> 7254 | X52: 0 | Y52: 0 | Z52: 4.6955 | AA52: 0 | AB52: 0 | AC52: 1 | AD52: 1 | AE52: 0 | AG52: 1 | AH52: 0.2 | AJ52: 1 | AK52: 1 | AL52: =1-1 -> 0 | AM52: 3 | AN52: 38427 | AO52: 11558.16228 | AP52: 13516.15256 | AQ52: 15501.16139 | AR52: 22072.06619 | AS52: 18221.93576 | BF52: 11615.96327 | BG52: 13573.95356 | BH52: 15558.96239 | BI52: 22129.86719 | BJ52: 18279.73676 | BY52: 0 | BZ52: 0 | CA52: =275 -> 275 | CB52: 55 | CC52: 254 | CD52: 46 | CE52: 0 | CF52: 0
A53: 7069 | B53: The Wyvern School | C53: PSCN | F53: 1 | I53: 1 | J53: 5 | K53: Not listed on letter | U53: 0 | V53: 0 | W53: 6096 | X53: 0 | Y53: 0 | Z53: 7.6 | AA53: 0 | AB53: 0 | AC53: 1 | AD53: 1 | AE53: 0 | AG53: 1 | AH53: 0.2246696035 | AJ53: 0 | AK53: 0 | AL53: 1 | AM53: 0 | AO53: 11783.6196 | AP53: 13695.47218 | AQ53: 15651.45985 | AR53: 22097.19156 | AS53: 18315.31446 | BF53: 11761.88236 | BG53: 13673.73494 | BH53: 15629.72261 | BI53: 22075.45432 | BJ53: 18293.57722 | BY53: 0 | BZ53: 0 | CA53: 215 | CB53: 35 | CC53: 184 | CD53: 35 | CE53: 0 | CF53: 0
A54: 7070 | B54: Oakley School | C54: PSCN | F54: 1 | I54: 2 | J54: =(12/12)*12 -> 12 | K54: Checked to Letter | U54: 0 | V54: 0 | W54: 4287 | X54: 0 | Y54: 0 | Z54: 11.4161 | AA54: 0 | AB54: 0 | AC54: 1 | AD54: 1 | AE54: 0 | AG54: 0 | AH54: 0.2261306533 | AJ54: 0 | AK54: 0 | AL54: 0 | AM54: 1 | AN54: 38427 | AO54: 12032.98735 | AP54: 13944.83993 | AQ54: 15900.8276 | AR54: 22346.55931 | AS54: 18564.68221 | BF54: 12109.27813 | BG54: 14021.1307 | BH54: 15977.11838 | BI54: 22422.85008 | BJ54: 18640.97299 | BY54: 0 | BZ54: 0 | CA54: 158 | CB54: 36 | CC54: 158 | CD54: 36 | CE54: 0 | CF54: 0
A55: 7072 | B55: Meadowfield School | C55: PSCN | F55: 1 | I55: 1 | J55: 4 | K55: Checked to Letter | U55: 0 | V55: 0 | W55: 6963 | X55: 0 | Y55: 0 | Z55: 2.3726 | AA55: 0 | AB55: 0 | AC55: 1 | AD55: 1 | AE55: 0 | AG55: 1 | AH55: 0.2724014337 | AJ55: 0 | AK55: 0 | AL55: 0 | AM55: 0 | AO55: 11643.28241 | AP55: 13555.13498 | AQ55: 15511.12266 | AR55: 21956.85436 | AS55: 18174.97726 | BF55: 11602.31362 | BG55: 13514.1662 | BH55: 15470.15387 | BI55: 21915.88558 | BJ55: 18134.00848 | BY55: 0 | BZ55: 0 | CA55: 214 | CB55: 50 | CC55: 180 | CD55: 60 | CE55: 0 | CF55: 0
B56: Total | F56: =SUM(F34:F55) -> 22 | G56: =SUM(G34:G55) -> 4 | H56: =SUM(H34:H55) -> 1 | J56: =SUM(J34:J55) -> 80.5
